fUST/lending_fUST_20251227
["ID","MTS","AMOUNT","RATE_DAILY","PERIOD"]
[399876867,1766798445832,3901.77,0.00030027,120]
[399876868,1766798446066,3901.77,0.00030027,120]
[399876869,1766798446318,3901.77,0.00030027,120]
[399876870,1766798446608,3901.77,0.00030027,120]
[399876871,1766798446900,3901.77,0.00030027,120]
[399876872,1766798447150,3901.77,0.00030027,120]
[399876873,1766798447379,3901.77,0.00030027,120]
[399876874,1766798447618,3901.77,0.00030027,120]
[399876875,1766798447880,3901.77,0.00030027,120]
[399876876,1766798448137,3901.77,0.00030027,120]
[399876877,1766798448378,3901.77,0.00030027,120]
[399876878,1766798448604,3901.77,0.00030027,120]
[399876879,1766798448844,3901.77,0.00030027,120]
[399876880,1766798449096,3901.77,0.00030027,120]
[399876881,1766798449371,3901.77,0.00030027,120]
[399876882,1766798449698,3901.77,0.00030027,120]
[399876883,1766798449776,477.1050912,0.00030027,120]
[399876884,1766798449857,3901.77,0.00030027,120]
[399876885,1766798450097,3901.77,0.00030027,120]
[399876886,1766798450342,3901.95626441,0.00030027,120]
[399876887,1766798458364,223.69572444,0.00029999,120]
[399876888,1766798459630,8385.23,0.00029999,120]
[399876889,1766798459887,8385.23,0.00029999,120]
[399876890,1766798460114,8385.23,0.00029999,120]
[399876891,1766798460397,8385.23,0.00029999,120]
[399876892,1766798460635,8385.23,0.00029999,120]
[399876893,1766798460893,8385.23,0.00029999,120]
[399876894,1766798461137,8385.23,0.00029999,120]
[399876895,1766798461385,8385.23,0.00029999,120]
[399876896,1766798461657,8385.23,0.00029999,120]
[399876897,1766798461909,8385.23,0.00029999,120]
[399876898,1766798462034,239.68782049,0.00029999,120]
[399876899,1766798462166,8385.23,0.00029999,120]
[399876900,1766798462515,8385.23,0.00029999,120]
[399876901,1766798462764,8385.23,0.00029999,120]
[399876902,1766798463023,8385.23,0.00029999,120]
[399876903,1766798463270,8385.23,0.00029999,120]
[399876904,1766798463498,8385.23,0.00029999,120]
[399876905,1766798463735,8385.23,0.00029999,120]
[399876906,1766798463984,8385.23,0.00029999,120]
[399876907,1766798464250,8385.23,0.00029999,120]
[399876908,1766798464577,8385.23,0.00029999,120]
[399876909,1766798464822,8385.23,0.00029999,120]
[399876910,1766798465101,8385.23,0.00029999,120]
[399876911,1766798465212,168.17790847,0.00029999,120]
[399876912,1766798465345,8385.23,0.00029999,120]
[399876913,1766798465588,8385.3581702,0.00029999,120]
[399876914,1766798465878,297.09489507,0.00029999,120]
[399876915,1766798467189,292.64485027,0.00029999,120]
[399876916,1766798467587,500.0,0.00029999,120]
[399876917,1766798467825,500.0,0.00029999,120]
[399876918,1766798468081,503.72494791,0.00029999,120]
[399876919,1766798472432,528.16601071,0.00029999,120]
[399876920,1766798474562,214.64664276,0.00030109,120]
[399876921,1766798477849,214.36229406,0.00030109,120]
[399876922,1766798479001,307.49770079,0.00030109,120]
[399876923,1766798480622,327.24118273,0.00030109,120]
[399876924,1766798482457,368.93274994,0.00030109,120]
[399876925,1766798487567,201.74154839,0.00030109,120]
[399876926,1766798487655,325.70366682,0.00030109,120]
[399876927,1766798494244,486.36199248,0.00030109,120]
[399876928,1766798496034,209.18184189,0.00030109,120]
[399876929,1766798498261,327.20147488,0.00030109,120]
[399876930,1766798498951,171.6602981,0.00030109,120]
[399876931,1766798503968,384.56806667,0.00030109,120]
[399876932,1766798505833,503.10662397,0.00030109,120]
[399876933,1766798507525,460.1041477,0.00030134,120]
[399876934,1766798508050,412.23585548,0.00030134,120]
[399876935,1766798509284,337.68740343,0.00030134,120]
[399876936,1766798515836,266.63462785,0.00030134,120]
[399876937,1766798521823,194.07429227,0.00030134,120]
[399876938,1766798523353,18575.92,0.00030134,120]
[399876939,1766798523593,18575.92,0.00030134,120]
[399876940,1766798523830,18575.92,0.00030134,120]
[399876941,1766798524059,18575.92,0.00030134,120]
[399876942,1766798524285,18575.92,0.00030134,120]
[399876943,1766798524507,18575.92,0.00030134,120]
[399876944,1766798524736,18575.92,0.00030134,120]
[399876945,1766798524972,18575.92,0.00030134,120]
[399876946,1766798525216,18575.92,0.00030134,120]
[399876947,1766798525449,18575.92,0.00030134,120]
[399876948,1766798525510,237.8689807,0.00030134,120]
[399876949,1766798525824,18575.92,0.00030134,120]
[399876950,1766798525928,18575.92,0.00030134,120]
[399876951,1766798526158,18575.92,0.00030134,120]
[399876952,1766798526403,18575.92,0.00030134,120]
[399876953,1766798526642,18575.92,0.00030134,120]
[399876954,1766798526884,18575.92,0.00030134,120]
[399876955,1766798527178,18575.92,0.00030134,120]
[399876956,1766798527374,18575.92,0.00030134,120]
[399876957,1766798527586,546.52,0.00030134,120]
[399876958,1766798527620,18575.92,0.00030134,120]
[399876959,1766798527840,546.52,0.00030134,120]
[399876960,1766798527875,18575.92,0.00030134,120]
[399876961,1766798528075,546.52,0.00030134,120]
[399876962,1766798528321,546.52,0.00030134,120]
[399876963,1766798528452,18575.92,0.00030134,120]
[399876964,1766798528554,546.52,0.00030134,120]
[399876965,1766798528695,18575.92,0.00030134,120]
[399876966,1766798528783,546.52,0.00030134,120]
[399876967,1766798528925,18575.92,0.00030134,120]
[399876968,1766798529032,546.52,0.00030134,120]
[399876969,1766798529153,18575.95283974,0.00030134,120]
[399876970,1766798529275,546.52,0.00030134,120]
[399876971,1766798529502,546.52,0.00030134,120]
[399876972,1766798529730,546.52,0.00030134,120]
[399876973,1766798529985,546.52,0.00030134,120]
[399876974,1766798530211,546.52,0.00030134,120]
[399876975,1766798530444,546.52,0.00030134,120]
[399876976,1766798530679,546.52,0.00030134,120]
[399876977,1766798530908,546.52,0.00030134,120]
[399876978,1766798530992,449.87948391,0.00030134,120]
[399876979,1766798531138,546.52,0.00030134,120]
[399876980,1766798531446,546.52,0.00030134,120]
[399876981,1766798531621,546.52,0.00030134,120]
[399876982,1766798531845,544.78432149,0.00030134,120]
[399876983,1766798531877,546.52,0.00030134,120]
[399876984,1766798532094,546.52,0.00030134,120]
[399876985,1766798532323,546.52,0.00030134,120]
[399876986,1766798532552,546.52,0.00030134,120]
[399876987,1766798532772,546.52,0.00030134,120]
[399876988,1766798533002,546.58654199,0.00030134,120]
[399876989,1766798534708,416.05321602,0.00030134,120]
[399876990,1766798540485,321.21779475,0.00030134,120]
[399876991,1766798545334,152.86338107,0.00030134,120]
[399876992,1766798552576,205.85840079,0.00030134,120]
[399876993,1766798556450,500.0,0.00030134,120]
[399876994,1766798556678,500.0,0.00030134,120]
[399876995,1766798557086,566.04681789,0.00030134,120]
[399876998,1766798590984,500.0,0.00030134,120]
[399876999,1766798591216,500.0,0.00030134,120]
[399877000,1766798591475,500.0,0.00030134,120]
[399877001,1766798591721,245.32865679,0.00030134,120]
[399877053,1766798619606,500.0,0.00030134,120]
[399877054,1766798619843,500.0,0.00030134,120]
[399877055,1766798620078,500.0,0.00030134,120]
[399877056,1766798620310,500.0,0.00030134,120]
[399877057,1766798620544,500.0,0.00030134,120]
[399877059,1766798620806,500.0,0.00030134,120]
[399877061,1766798621036,500.0,0.00030134,120]
[399877062,1766798621262,500.0,0.00030134,120]
[399877064,1766798621525,500.0,0.00030134,120]
[399877066,1766798621767,500.0,0.00030134,120]
[399877067,1766798621982,237.11391437,0.00030134,120]
[399877102,1766798635384,500.0,0.00030134,120]
[399877103,1766798635688,500.0,0.00030134,120]
[399877104,1766798635934,500.0,0.00030134,120]
[399877105,1766798636183,495.87913853,0.00030134,120]
[399877107,1766798653254,1458.86,0.00030134,120]
[399877109,1766798653483,1458.86,0.00030134,120]
[399877111,1766798653724,1458.86,0.00030134,120]
[399877113,1766798653965,1458.86,0.00030134,120]
[399877115,1766798654205,1458.86,0.00030134,120]
[399877117,1766798654433,1458.86,0.00030134,120]
[399877118,1766798654680,1458.86,0.00030134,120]
[399877119,1766798654911,1458.86,0.00030134,120]
[399877120,1766798655150,1458.86,0.00030134,120]
[399877121,1766798655386,1458.86,0.00030134,120]
[399877122,1766798655948,1458.86,0.00030134,120]
[399877123,1766798656220,1458.86,0.00030134,120]
[399877124,1766798656442,1458.86,0.00030134,120]
[399877125,1766798656696,1458.86,0.00030134,120]
[399877126,1766798656927,1458.86,0.00030134,120]
[399877127,1766798657171,1458.86,0.00030134,120]
[399877128,1766798657398,1458.86,0.00030134,120]
[399877129,1766798657642,1458.86,0.00030134,120]
[399877130,1766798657882,1458.86,0.00030134,120]
[399877131,1766798658107,1458.86,0.00030134,120]
[399877132,1766798658363,1458.86,0.00030134,120]
[399877133,1766798658629,1458.86,0.00030134,120]
[399877134,1766798659216,1458.86,0.00030134,120]
[399877135,1766798659453,1459.00254004,0.00030134,120]
[399877140,1766798666182,419.79494217,0.00030134,120]
[399877181,1766798676365,434.25382152,0.00030134,120]
[399877218,1766798705018,354.73364585,0.00030134,120]
[399877219,1766798708841,419.73547984,0.00030134,120]
[399877221,1766798717504,500.0,0.00030134,120]
[399877222,1766798717742,500.0,0.00030134,120]
[399877224,1766798717990,500.0,0.00030134,120]
[399877226,1766798718252,500.0,0.00030134,120]
[399877228,1766798718488,500.0,0.00030134,120]
[399877230,1766798718730,500.0,0.00030134,120]
[399877232,1766798718994,500.0,0.00030134,120]
[399877233,1766798719200,500.0,0.00030134,120]
[399877234,1766798719432,500.0,0.00030134,120]
[399877235,1766798719769,500.0,0.00030134,120]
[399877236,1766798720003,500.0,0.00030134,120]
[399877237,1766798720242,500.0,0.00030134,120]
[399877238,1766798720481,500.0,0.00030134,120]
[399877239,1766798720741,500.0,0.00030134,120]
[399877240,1766798720978,500.0,0.00030134,120]
[399877241,1766798721248,459.67392061,0.00030134,120]
[399877244,1766798730871,469.38768088,0.00030134,120]
[399877245,1766798732267,-218.52121038,0.00018821,2]
[399877247,1766798733088,307.15512233,0.00030134,120]
[399877248,1766798735277,365.08579636,0.00030134,120]
[399877253,1766798743537,194.12590202,0.00030134,120]
[399877256,1766798752235,324.1615274,0.00030134,120]
[399877257,1766798755864,457.94709618,0.00030134,120]
[399877258,1766798757062,226.2481919,0.00030134,120]
[399877259,1766798757124,-430.46124108,0.00018821,2]
[399877260,1766798758114,273.23649321,0.00030134,120]
[399877262,1766798759191,301.99964494,0.00030134,120]
[399877263,1766798760061,486.27795949,0.00030134,120]
[399877266,1766798768562,181.3428571,0.00030134,120]
[399877267,1766798770499,484.8973529,0.00030134,120]
[399877268,1766798773810,417.0919637,0.00030134,120]
[399877275,1766798777084,390.2886947,0.00030134,120]
[399877277,1766798780461,500.0,0.00030134,120]
[399877278,1766798780716,500.0,0.00030134,120]
[399877279,1766798780954,588.77945269,0.00030134,120]
[399877299,1766798791984,195.84811026,0.00030134,120]
[399877313,1766798798989,289.24358678,0.00030134,120]
[399877320,1766798800849,178.00744709,0.00030134,120]
[399877340,1766798804316,194.97889073,0.00030134,120]
[399877347,1766798805596,478.16587175,0.00030134,120]
[399877348,1766798807693,1307.29,0.00030134,120]
[399877349,1766798807969,1307.29,0.00030134,120]
[399877350,1766798808210,1307.29,0.00030134,120]
[399877351,1766798808458,1307.29,0.00030134,120]
[399877352,1766798808699,1307.29,0.00030134,120]
[399877353,1766798808945,1307.29,0.00030134,120]
[399877354,1766798809214,1307.29,0.00030134,120]
[399877355,1766798809486,1307.29,0.00030134,120]
[399877356,1766798809846,1307.29,0.00030134,120]
[399877357,1766798810084,1307.29,0.00030134,120]
[399877358,1766798810321,1307.29,0.00030134,120]
[399877359,1766798810571,1307.29,0.00030134,120]
[399877360,1766798810811,1307.29,0.00030134,120]
[399877361,1766798811062,1307.29,0.00030134,120]
[399877362,1766798811327,1307.29,0.00030134,120]
[399877363,1766798811591,1307.29,0.00030134,120]
[399877364,1766798811821,1307.29,0.00030134,120]
[399877365,1766798812056,1307.29,0.00030134,120]
[399877366,1766798812295,1307.29,0.00030134,120]
[399877367,1766798812610,1307.29,0.00030134,120]
[399877368,1766798812805,1307.29,0.00030134,120]
[399877369,1766798813051,1307.29,0.00030134,120]
[399877370,1766798813364,1307.29,0.00030134,120]
[399877371,1766798813617,1307.38751024,0.00030134,120]
[399877374,1766798819884,248.80579534,0.00030134,120]
[399877380,1766798823189,226.79034598,0.00030134,120]
[399877390,1766798830800,153.07502807,0.00030134,120]
[399877409,1766798842157,480.0,0.00030134,120]
[399877432,1766798851303,500.0,0.00030134,120]
[399877433,1766798851534,500.0,0.00030134,120]
[399877435,1766798851800,588.13262054,0.00030134,120]
[399877440,1766798853079,-117.22849617,0.00018821,2]
[399877441,1766798853102,-254.51144198,0.00019011,2]
[399877442,1766798853123,-704.0,0.00019011,2]
[399877444,1766798853146,-134.67370888,0.00019033,2]
[399877472,1766798886622,500.0,0.00030134,120]
[399877473,1766798886853,500.0,0.00030134,120]
[399877474,1766798887097,500.0,0.00030134,120]
[399877475,1766798887346,500.0,0.00030134,120]
[399877476,1766798887581,500.0,0.00030134,120]
[399877477,1766798887810,500.0,0.00030134,120]
[399877478,1766798888096,500.0,0.00030134,120]
[399877479,1766798888291,500.0,0.00030134,120]
[399877480,1766798888631,500.0,0.00030134,120]
[399877481,1766798888743,528.62546541,0.00030134,120]
[399877490,1766798903549,500.0,0.00030134,120]
[399877491,1766798903782,500.0,0.00030134,120]
[399877492,1766798904020,500.0,0.00030134,120]
[399877493,1766798904257,500.0,0.00030134,120]
[399877494,1766798904502,500.0,0.00030134,120]
[399877495,1766798905254,500.0,0.00030134,120]
[399877497,1766798905483,500.0,0.00030134,120]
[399877499,1766798905741,444.98000369,0.00030134,120]
[399877572,1766798966083,-2792.91204004,0.00018876,2]
[399877573,1766798966106,-166.55339339,0.00019067,2]
[399877574,1766798966128,-159.48082971,0.000191,2]
[399877575,1766798966149,-323.54271995,0.00020148,2]
[399877596,1766799008394,165.0,0.00015,2]
[399877604,1766799013484,175.72073693,0.00030134,120]
[399877650,1766799031838,-175.3049376,0.00020976,7]
[399877653,1766799031863,-160.0,0.00020996,3]
[399877655,1766799031875,-196.5330042,0.00021067,2]
[399877657,1766799031888,-1005.0,0.000218,5]
[399877659,1766799031900,-244.56157012,0.00022026,2]
[399877662,1766799031918,-55.43842988,0.00022026,2]
[399877664,1766799031930,-150.0,0.00022027,2]
[399877666,1766799031942,-150.0,0.00022027,2]
[399877668,1766799031955,-150.0,0.00022027,2]
[399877670,1766799031966,-191.7012049,0.00022027,2]
[399877675,1766799031978,-2605.29694462,0.000221,2]
[399877678,1766799031991,-415.11334201,0.00022106,2]
[399877680,1766799032003,-416.0,0.00022113,2]
[399877682,1766799032016,-252.39955171,0.00022123,2]
[399877684,1766799032027,-150.0,0.00022164,2]
[399877686,1766799032039,-150.0,0.00022164,2]
[399877689,1766799032052,-340.028391,0.00022191,2]
[399877691,1766799032063,-340.028391,0.00022191,2]
[399877693,1766799032075,-340.028391,0.00022191,2]
[399877695,1766799032088,-340.028391,0.00022191,2]
[399877697,1766799032100,-151.0,0.00022191,2]
[399877699,1766799032111,-151.0,0.00022191,2]
[399877701,1766799032123,-2066.19,0.00022191,10]
[399877704,1766799032135,-3538.06,0.00022191,10]
[399877706,1766799032147,-1834.7312597,0.00022191,10]
[399877710,1766799032184,-152.18410577,0.0002219,2]
[399877713,1766799032195,-362.5631626,0.0002219,2]
[399877715,1766799032206,-92.76773177,0.0002219,2]
[399877754,1766799037511,237.55980362,0.00030134,120]
[399877772,1766799038009,-441.37148918,0.0002219,2]
[399877773,1766799038032,-1118.1587403,0.00022191,10]
[399877774,1766799038046,-2460.74,0.00022191,10]
[399877775,1766799038058,-340.028391,0.000222,2]
[399877776,1766799038068,-340.028391,0.000222,2]
[399877777,1766799038080,-340.028391,0.000222,2]
[399877778,1766799038091,-340.028391,0.000222,2]
[399877779,1766799038103,-151.0,0.000222,2]
[399877780,1766799038113,-151.0,0.000222,2]
[399877781,1766799038124,-205.19755342,0.000222,2]
[399877782,1766799038135,-500.0,0.000222,2]
[399877783,1766799038145,-500.0,0.000222,2]
[399877784,1766799038155,-500.0,0.000222,2]
[399877785,1766799038167,-500.0,0.000222,2]
[399877786,1766799038177,-500.0,0.000222,2]
[399877787,1766799038187,-500.0,0.000222,2]
[399877788,1766799038196,-500.0,0.000222,2]
[399877789,1766799038206,-500.0,0.000222,2]
[399877790,1766799038216,-258.16726771,0.000222,2]
[399877791,1766799038225,-151.0,0.00022201,2]
[399877792,1766799038235,-151.0,0.00022201,2]
[399877793,1766799038245,-210.910648,0.00022201,2]
[399877794,1766799038254,-210.910648,0.00022201,2]
[399877795,1766799038264,-210.910648,0.00022201,2]
[399877796,1766799038274,-210.910648,0.00022201,2]
[399877797,1766799038283,-151.0,0.00022201,2]
[399877798,1766799038293,-239.000149,0.00022201,2]
[399877799,1766799038303,-151.0,0.00022201,2]
[399877800,1766799038313,-284.197164,0.00022201,2]
[399877801,1766799038322,-284.197164,0.00022201,2]
[399877802,1766799038331,-151.0,0.00022201,2]
[399877803,1766799038340,-284.197164,0.00022201,2]
[399877804,1766799038351,-151.0,0.00022201,2]
[399877805,1766799038360,-284.197164,0.00022201,2]
[399877806,1766799038370,-151.0,0.00022201,2]
[399877807,1766799038379,-224.44342,0.00022201,2]
[399877808,1766799038389,-224.44342,0.00022201,2]
[399877809,1766799038399,-224.44342,0.00022201,2]
[399877810,1766799038409,-224.44342,0.00022201,2]
[399877811,1766799038418,-151.0,0.00022201,2]
[399877812,1766799038428,-544.106604,0.00022201,2]
[399877813,1766799038438,-544.106604,0.00022201,2]
[399877814,1766799038448,-544.106604,0.00022201,2]
[399877815,1766799038458,-544.106604,0.00022201,2]
[399877816,1766799038468,-340.028391,0.00022201,2]
[399877817,1766799038478,-340.028391,0.00022201,2]
[399877818,1766799038488,-340.028391,0.00022201,2]
[399877819,1766799038498,-340.028391,0.00022201,2]
[399877820,1766799038507,-151.0,0.00022201,2]
[399877821,1766799038517,-237.555439,0.00022201,2]
[399877822,1766799038527,-2242.2774646,0.00022201,2]
[399877823,1766799038536,-39427.24814913,0.00022201,2]
[399878164,1766799043281,243.84298979,7.961e-05,2]
[399878236,1766799043953,243.84298979,0.0001697,2]
[399878354,1766799045061,-434.35922891,0.00022191,10]
[399878463,1766799046092,-1616.26077109,0.00022191,10]
[399878465,1766799046103,-355.13330305,0.00022201,2]
[399878835,1766799050254,591.18,0.00030134,120]
[399878857,1766799050508,591.18,0.00030134,120]
[399878877,1766799050740,591.18,0.00030134,120]
[399878898,1766799050978,591.18,0.00030134,120]
[399878920,1766799051213,591.18,0.00030134,120]
[399878940,1766799051450,591.18,0.00030134,120]
[399878961,1766799051675,591.18,0.00030134,120]
[399878985,1766799051931,591.18,0.00030134,120]
[399879041,1766799052522,591.18,0.00030134,120]
[399879068,1766799052797,591.18,0.00030134,120]
[399879090,1766799053134,591.18,0.00030134,120]
[399879091,1766799053366,591.18,0.00030134,120]
[399879108,1766799053595,591.18,0.00030134,120]
[399879131,1766799053819,591.18,0.00030134,120]
[399879153,1766799054028,158.38064045,0.00030134,120]
[399879159,1766799054080,591.18,0.00030134,120]
[399879180,1766799054280,591.18,0.00030134,120]
[399879204,1766799054506,591.18,0.00030134,120]
[399879230,1766799054747,591.18,0.00030134,120]
[399879254,1766799054978,591.18,0.00030134,120]
[399879285,1766799055275,591.18,0.00030134,120]
[399879312,1766799055526,591.18,0.00030134,120]
[399879338,1766799055782,591.18,0.00030134,120]
[399879364,1766799056053,591.18,0.00030134,120]
[399879394,1766799056505,591.22281003,0.00030134,120]
[399879722,1766799059752,180.01145142,7.961e-05,2]
[399880397,1766799066772,150.0,0.00011402,2]
[399880511,1766799071655,150.26258269,0.00030134,120]
[399880530,1766799088403,310.81116599,0.00030134,120]
[399880547,1766799104745,282.80058131,0.00030134,120]
[399880552,1766799108181,500.0,0.00030134,120]
[399880553,1766799108415,295.2589433,0.00030134,120]
[399880557,1766799114212,183.68899922,0.00030134,120]
[399880560,1766799118021,312.49736265,0.00030134,120]
[399880565,1766799121740,1213.3,0.0003013,120]
[399880585,1766799128840,221.20312507,0.00030134,120]
[399880605,1766799134196,241.44859489,0.00030134,120]
[399880610,1766799138991,246.66237411,0.00030134,120]
[399880641,1766799159106,250.24606286,0.00030134,120]
[399880648,1766799163704,348.51723766,0.00030134,120]
[399880653,1766799165894,500.0,0.00030134,120]
[399880654,1766799166146,500.0,0.00030134,120]
[399880655,1766799166476,308.78851969,0.00030134,120]
[399880665,1766799172568,267.21466572,0.00030134,120]
[399880666,1766799173019,303.59738805,0.00030134,120]
[399880669,1766799175927,155.90187516,0.00030134,120]
[399880670,1766799176712,388.02111988,0.00030134,120]
[399880678,1766799187097,3750.77,0.00030134,120]
[399880679,1766799187343,3750.77,0.00030134,120]
[399880680,1766799187400,245.03746258,0.00030134,120]
[399880681,1766799187573,3750.77,0.00030134,120]
[399880682,1766799187804,3750.77,0.00030134,120]
[399880683,1766799188077,3750.77,0.00030134,120]
[399880684,1766799188294,3750.77,0.00030134,120]
[399880685,1766799188528,3750.77,0.00030134,120]
[399880686,1766799188782,3750.77,0.00030134,120]
[399880687,1766799189022,3750.77,0.00030134,120]
[399880688,1766799189257,3750.77,0.00030134,120]
[399880690,1766799189490,3750.77,0.00030134,120]
[399880691,1766799189732,3750.77,0.00030134,120]
[399880693,1766799189966,3750.77,0.00030134,120]
[399880695,1766799190208,3750.77,0.00030134,120]
[399880696,1766799190426,3750.77,0.00030134,120]
[399880700,1766799190681,3750.77,0.00030134,120]
[399880702,1766799190898,3750.77,0.00030134,120]
[399880705,1766799191378,3750.77,0.00030134,120]
[399880706,1766799191435,3750.77,0.00030134,120]
[399880707,1766799191517,212.0295599,0.00030134,120]
[399880708,1766799191577,3750.77,0.00030134,120]
[399880710,1766799191831,3750.77,0.00030134,120]
[399880711,1766799192072,3750.77,0.00030134,120]
[399880712,1766799192333,3750.77,0.00030134,120]
[399880713,1766799192566,3750.97757176,0.00030134,120]
[399880714,1766799193851,150.0,0.00011413,2]
[399880719,1766799199430,200.04667605,0.0003013,120]
[399880732,1766799204581,502.00632779,0.00013273,2]
[399880743,1766799217794,300.73621726,0.00030134,120]
[399880746,1766799219759,198.0,0.00030137,120]
[399880758,1766799243209,418.28112267,0.00013699,2]
[399880869,1766799477535,418.239034,0.00013699,2]
[399880888,1766799628698,476.46061876,0.00030134,120]
[399880894,1766799781558,225.46268563,7.961e-05,2]
[399880901,1766799952312,-225.46268563,0.00016736,2]
[399880902,1766799952338,-169.95431548,0.00018261,2]
[399880903,1766799952365,-1786.32109944,0.00019786,2]
[399880918,1766800037095,-579.60785075,0.00019588,2]
[399880919,1766800037117,-721.0,0.00019986,2]
[399880920,1766800037139,-418.239034,0.00020187,2]
[399880921,1766800037162,-200.54609226,0.00020261,2]
[399880922,1766800037183,-2318.8583572,0.00021729,2]
[399880923,1766800037205,-2318.8583573,0.00021985,2]
[399880924,1766800037227,-150.0,0.00021996,2]
[399880925,1766800037248,-216.23611625,0.00021996,2]
[399880926,1766800037268,-380.8300885,0.00022,2]
[399880927,1766800037289,-3855.67582981,0.0002203,2]
[399880928,1766800037316,-704.1486818,0.0002203,2]
[399880930,1766800149100,-258.19879035,0.00016736,2]
[399880952,1766800231887,-170.1383793,0.00021983,2]
[399880953,1766800231897,-292.0896207,0.00022001,2]
[399880962,1766800238056,-2047.78381896,0.00022001,2]
[399880965,1766800238068,-1200.0,0.00022029,2]
[399880966,1766800238077,-6167.47718154,0.0002203,2]
[399880968,1766800238087,-171.6866747,0.00022031,2]
[399880970,1766800238098,-300.0,0.00022031,2]
[399880972,1766800238107,-500.0,0.00022032,2]
[399880974,1766800238117,-458.39792532,0.00022032,2]
[399880976,1766800238127,-369.20646636,0.00022032,2]
[399880978,1766800238137,-244.86078963,0.00022032,2]
[399880980,1766800238147,-7558.87997926,0.00022033,2]
[399880982,1766800238158,-1672.84903825,0.00022033,2]
[399880984,1766800238168,-416.0,0.00022044,2]
[399880986,1766800238179,-168.60527545,0.00022053,2]
[399880988,1766800238188,-645.87313566,0.00022088,2]
[399880990,1766800238198,-1708.85,0.00022091,10]
[399880992,1766800238207,-163.12146994,0.000221,2]
[399880994,1766800238217,-500.0,0.000221,2]
[399880996,1766800238227,-500.0,0.000221,2]
[399880998,1766800238236,-500.0,0.000221,2]
[399881000,1766800238245,-500.0,0.000221,2]
[399881002,1766800238255,-500.0,0.000221,2]
[399881004,1766800238264,-500.0,0.000221,2]
[399881006,1766800238274,-500.0,0.000221,2]
[399881008,1766800238283,-500.0,0.000221,2]
[399881010,1766800238293,-500.0,0.000221,2]
[399881012,1766800238303,-500.0,0.000221,2]
[399881014,1766800238313,-498.01630089,0.000221,2]
[399881016,1766800238323,-151.0,0.000221,2]
[399881018,1766800238333,-151.0,0.000221,2]
[399881020,1766800238342,-151.0,0.000221,2]
[399881022,1766800238351,-151.0,0.000221,2]
[399881024,1766800238361,-151.0,0.000221,2]
[399881026,1766800238371,-151.0,0.000221,2]
[399881028,1766800238381,-230.206001,0.000221,2]
[399881030,1766800238391,-230.206001,0.000221,2]
[399881032,1766800238402,-230.206001,0.000221,2]
[399881034,1766800238412,-151.0,0.000221,2]
[399881036,1766800238421,-230.206001,0.000221,2]
[399881038,1766800238431,-151.0,0.000221,2]
[399881040,1766800238443,-151.0,0.000221,2]